bitfinex-derivatives/quotes_SOLF0:USTF0_20250228
["timestamp","ask_amount","ask_price","bid_price","bid_amount"]
[1740764810063,6.9503,143.89,143.85,6.952]
[1740764810364,14.88,143.95,143.82,14.88]
[1740764810763,14.88,143.95,143.83,6.953]
[1740764810962,0.04519497,143.9,143.83,6.953]
[1740764811561,0.04519497,143.9,143.82,14.88]
[1740764811961,0.04519497,143.9,143.86,6.9515]
[1740764812659,0.04519497,143.9,143.82,14.88]
[1740764813766,0.04519497,143.9,143.85,6.9521]
[1740764813966,0.04519497,143.9,143.83,1.9101]
[1740764814359,0.04519497,143.9,143.85,6.9521]
[1740764814561,0.04519497,143.9,143.83,1.9101]
[1740764815262,0.04519497,143.9,143.84,1.5753]
[1740764815467,0.04519497,143.9,143.84,8.83084243]
[1740764815858,0.04519497,143.9,143.89,6.9503]
[1740764816357,0.04519497,143.9,143.88,21.7303]
[1740764816563,0.04519497,143.9,143.88,14.78]
[1740764817066,0.04519497,143.9,143.89,6.9503]
[1740764817668,1.8951,143.98,143.92,6.9488]
[1740764817869,1.8951,143.98,143.88,14.78]
[1740764818066,6.9469,143.96,143.88,14.78]
[1740764818465,1.8951,143.98,143.88,14.78]
[1740764818661,0.05231559,143.94,143.93,6.9483]
[1740764818866,222.3,144.09,143.93,14.72]
[1740764819067,5.09715968,144.04,143.93,14.72]
[1740764819670,6.9462,143.98,143.93,14.72]
[1740764819967,5.09715968,144.04,143.94,0.05303107]
[1740764820161,0.05084948,143.97,143.94,7.00083107]
[1740764820362,5.09715968,144.04,143.98,0.04622722]
[1740764820567,0.05089549,144.02,143.93,14.72]
[1740764820766,5.09715968,144.04,143.93,14.72]
[1740764821871,0.04653461,144.0,143.97,0.04606939]
[1740764823471,0.04653461,144.0,143.98,14.68]
[1740764823668,1.7748,144.09,143.98,14.68]
[1740764823868,6.9422,144.06,143.98,14.68]
[1740764824069,1.7748,144.09,143.98,14.68]
[1740764824475,1.7748,144.09,143.98,21.6258]
[1740764824476,6.9435,144.04,143.98,21.6258]
[1740764824767,1.7748,144.09,143.98,21.6258]
[1740764824970,0.05038474,144.02,144.0,0.0501005]
[1740764825162,1.7748,144.09,143.98,14.68]
[1740764825364,0.05093812,144.02,143.98,14.68]
[1740764825563,1.7748,144.09,144.0,6.98983438]
[1740764825766,0.05033713,144.01,144.0,6.9447]
[1740764825968,1.7748,144.09,144.03,0.04658788]
[1740764826164,0.04563239,144.01,143.98,14.68]
[1740764826366,1.7748,144.09,143.98,14.68]
[1740764826573,0.04927214,144.01,143.98,14.72959269]
[1740764826874,0.04980066,144.01,143.98,0.0442701]
[1740764827281,0.04980066,144.01,143.9,1.6188]
[1740764827570,1.777,144.04,143.9,1.6188]
[1740764828275,6.9482,143.94,143.9,6.9496]
[1740764828674,14.64,144.0,143.91,0.04917807]
[1740764828876,0.04580425,143.93,143.92,6.9488]
[1740764829077,1.8801,143.99,143.94,0.0529315]
[1740764829371,0.0482608,143.98,143.89,275.00826762]
[1740764829569,1.8801,143.99,143.95,0.04575482]
[1740764829771,0.05257511,143.95,143.89,275.00826762]
[1740764829973,1.8801,143.99,143.89,275.00826762]
[1740764830574,6.9472,143.96,143.92,6.9486]
[1740764830777,0.05218974,143.95,143.89,275.00826762]
[1740764830980,0.05218974,143.95,143.89,236.94]
[1740764831377,6.99988974,143.95,143.89,236.94]
[1740764831581,0.05218974,143.95,143.89,236.94]
[1740764832081,0.05218974,143.95,143.91,6.9491]
[1740764832277,140.13755616,144.04,143.89,428.94]
[1740764832483,140.13755616,144.04,143.91,1.38975748]
[1740764832682,3.7676,144.1,143.92,1.2759952]
[1740764832879,3.7676,144.1,143.92,2.66565612]
[1740764833079,6.9419,144.07,143.99,6.9454]
[1740764833378,0.04902374,144.04,144.02,0.04455643]
[1740764833582,6.9427,144.05,144.02,0.04455643]
[1740764833878,0.04649479,144.04,143.92,1.38966092]
[1740764834087,14.76,144.05,143.92,1.38966092]
[1740764834779,6.9438,144.03,143.95,6.9469]
[1740764835080,0.04606692,144.0,143.97,0.02557023]
[1740764836577,6.9479,143.94,143.83,15.3841401]
[1740764836778,14.9,143.99,143.84,3.6049]
[1740764836978,16.757,143.99,143.85,14.98]
[1740764837183,1.857,143.99,143.85,237.24]
[1740764837383,1.857,143.99,143.86,1.8087]
[1740764837577,6.9467,143.97,143.86,9.06260401]
[1740764837773,0.05130549,143.94,143.86,9.06260401]
[1740764838279,0.05130549,143.94,143.86,7.25390401]
[1740764838680,0.05130549,143.94,143.85,222.26]
[1740764838879,6.9496,143.91,143.85,222.26]
[1740764839186,0.04770596,143.91,143.85,222.26]
[1740764839485,6.9502,143.9,143.85,222.26]
[1740764840290,0.04770596,143.91,143.85,222.26]
[1740764842580,0.04770596,143.91,143.86,7.25503822]
[1740764843484,0.04770596,143.91,143.87,6.9512]
[1740764843680,0.04770596,143.91,143.86,7.25503822]
[1740764843877,0.04770596,143.91,143.86,14.20643822]
[1740764844281,0.04770596,143.91,143.86,7.25503822]
[1740764844683,0.04770596,143.91,143.87,14.84]
[1740764845080,0.04770596,143.91,143.88,1.8921]
[1740764845279,6.9471,143.96,143.88,1.8921]
[1740764845485,1.857,143.99,143.88,1.8921]
[1740764846083,16.6255,144.01,143.88,1.8921]
[1740764846482,0.05261686,143.96,143.93,0.04770596]
[1740764846688,0.05261686,143.96,143.93,14.84770596]
[1740764847089,1.7455,144.01,143.93,14.84770596]
[1740764847090,3.7226,144.03,143.93,14.84770596]
[1740764847289,3.7226,144.03,143.93,14.8]
[1740764847485,6.9446,144.01,143.93,14.8]
[1740764847686,3.7226,144.03,143.93,14.8]
[1740764847890,10.6664,144.03,143.94,6.9474]
[1740764848189,1.8302,144.05,143.95,14.76]
[1740764848390,0.04857125,144.0,143.97,0.05277417]
[1740764850787,6.99387125,144.0,143.97,0.05277417]
[1740764851194,0.04857125,144.0,143.97,0.05277417]
[1740764851493,6.9459,143.98,143.97,0.05277417]
[1740764851695,0.04857125,144.0,143.97,0.05277417]
[1740764853195,6.9457,143.99,143.97,0.05277417]
[1740764854194,6.9459,143.98,143.97,0.05277417]
[1740764855697,0.04857125,144.0,143.97,0.05277417]
[1740764856296,6.9459,143.98,143.97,0.05277417]
[1740764859103,0.04857125,144.0,143.97,0.05277417]
[1740764859499,6.9458,143.99,143.97,0.05277417]
[1740764859698,0.04857125,144.0,143.97,0.05277417]
[1740764860899,6.9459,143.98,143.97,0.05277417]
[1740764861302,0.04857125,144.0,143.97,0.05277417]
[1740764861499,6.9457,143.99,143.97,0.05277417]
[1740764861797,0.04857125,144.0,143.97,0.05277417]
[1740764862003,6.9457,143.99,143.97,0.05277417]
[1740764862805,6.9459,143.98,143.97,0.05277417]
[1740764863200,0.04857125,144.0,143.97,14.61277417]
[1740764863602,0.04857125,144.0,143.99,6.9454]
[1740764864206,3.6467,144.07,143.97,14.61277417]
[1740764864505,6.9416,144.07,143.97,14.56]
[1740764865102,1.8538,144.09,143.97,14.56]
[1740764865503,0.05137143,144.04,144.02,0.04414095]
[1740764865700,1.8538,144.09,144.02,0.04414095]
[1740764865902,1.8538,144.09,144.02,14.56414095]
[1740764866103,6.9414,144.08,144.02,14.56414095]
[1740764866302,0.04402685,144.07,144.02,14.56414095]
[1740764867409,0.04402685,144.07,144.02,0.04414095]
[1740764867809,0.04402685,144.07,144.03,21.4632]
[1740764868209,0.04402685,144.07,144.03,14.52]
[1740764869111,0.04402685,144.07,144.03,21.4635]
[1740764869312,0.04402685,144.07,144.03,14.52]
[1740764869508,6.98572685,144.07,144.02,0.04414095]
[1740764869716,0.04402685,144.07,144.02,0.04414095]
[1740764870607,0.04402685,144.07,144.04,6.9427]
[1740764870809,0.04402685,144.07,144.04,14.5]
[1740764871312,0.04402685,144.07,144.02,0.04414095]
[1740764871912,6.9429,144.05,144.02,0.04414095]
[1740764872110,0.04402685,144.07,144.02,0.04414095]
[1740764872909,6.9423,144.06,144.02,0.04414095]
[1740764873108,0.04402685,144.07,144.02,0.04414095]
[1740764873911,0.04402685,144.07,144.04,6.9425]
[1740764874112,0.04402685,144.07,144.02,0.04414095]
[1740764875108,0.04402685,144.07,144.03,6.9435]
[1740764875514,0.04402685,144.07,144.02,0.04414095]
[1740764875716,0.04402685,144.07,144.04,6.943]
[1740764876114,0.04402685,144.07,144.02,0.04414095]
[1740764876115,0.04402685,144.07,144.05,14.48]
[1740764877918,0.04402685,144.07,144.05,21.4223]
[1740764878219,0.04402685,144.07,144.05,14.48]
[1740764878418,0.04402685,144.07,144.05,21.4225]
[1740764878717,0.04402685,144.07,144.05,14.48]
[1740764879013,0.04402685,144.07,144.06,6.9421]
[1740764879221,1.7962,144.13,144.05,14.48]
[1740764879414,1.7962,144.13,144.08,6.9409]
[1740764880123,8.7349,144.13,144.05,14.48]
[1740764880426,0.05179255,144.12,144.09,0.04700538]
[1740764880812,0.05179255,144.12,144.09,6.98720538]
[1740764881018,0.05179255,144.12,144.09,0.04700538]
[1740764881208,0.05179255,144.12,144.1,14.42]
[1740764882019,0.05179255,144.12,144.1,21.3597]
[1740764882918,0.05179255,144.12,144.11,6.9396]
[1740764884221,0.05179255,144.12,144.1,14.42]
[1740764884420,0.05179255,144.12,144.09,0.04700538]
[1740764885019,6.9401,144.1,144.09,0.04700538]
[1740764885415,1.7415,144.11,144.09,0.04700538]
[1740764885613,6.9399,144.11,144.09,0.04700538]
[1740764886322,6.9401,144.1,144.09,0.04700538]
[1740764887321,6.9398,144.11,144.09,0.04700538]
[1740764887518,0.05179255,144.12,144.09,0.04700538]
[1740764887918,6.99119255,144.12,144.09,0.04700538]
[1740764888323,0.05179255,144.12,144.09,0.04700538]
[1740764888518,6.99109255,144.12,144.09,0.04700538]
[1740764889022,0.05179255,144.12,144.09,0.04700538]
[1740764890924,0.05179255,144.12,144.11,6.9396]
[1740764892223,0.05179255,144.12,144.09,0.04700538]
[1740764893426,6.9399,144.11,144.09,0.04700538]
[1740764894030,0.05179255,144.12,144.09,0.04700538]
[1740764894421,0.05179255,144.12,144.1,6.9397]
[1740764895321,0.05179255,144.12,144.09,0.04700538]
[1740764895523,0.05179255,144.12,144.11,6.9396]
[1740764895836,0.05179255,144.12,143.96,9.51114356]
[1740764896031,14.24,144.14,143.97,20.84735585]
[1740764896332,14.24,144.14,143.98,15.69558424]
[1740764896627,14.24,144.14,143.99,1.27548011]
[1740764897031,0.04589312,144.08,144.05,0.05231137]
[1740764897232,14.24,144.14,144.03,14.42]
[1740764897428,0.05347361,144.08,144.05,0.05185416]
[1740764897737,14.24,144.14,144.03,14.42]
[1740764898033,0.04755965,144.08,144.05,0.05172055]
[1740764898331,14.24,144.14,144.03,14.42]
[1740764898532,0.04692416,144.08,144.05,0.04501985]
[1740764898733,14.24,144.14,144.03,14.42]
[1740764898927,0.05218764,144.08,144.05,0.05098361]
[1740764899125,6.941,144.09,144.03,14.42]
[1740764899328,0.04397345,144.08,144.05,0.04657018]
[1740764899526,0.04397345,144.08,144.03,14.22502932]
[1740764900226,6.9416,144.07,144.03,14.22502932]
[1740764900626,0.04397345,144.08,144.04,0.05213746]
[1740764901428,6.9425,144.05,144.04,0.05213746]
[1740764902834,6.9425,144.05,143.98,244.69468181]
[1740764902835,6.9449,144.01,143.98,223.40908181]
[1740764903430,6.9445,144.01,143.98,223.40908181]
[1740764903734,5.4637,144.07,143.98,223.40908181]
[1740764903935,0.05114871,144.01,143.98,230.40218971]
[1740764904235,6.9441,144.02,143.98,223.40908181]
[1740764904437,0.05279832,144.01,143.98,223.45344722]
[1740764905237,0.05279832,144.01,143.98,230.39934722]
[1740764905436,0.05279832,144.01,143.98,223.45344722]
[1740764905635,6.99749832,144.01,143.98,1.43344722]
[1740764905938,0.05279832,144.01,143.98,1.43344722]
[1740764906432,6.99759832,144.01,143.98,1.43344722]
[1740764906639,0.05279832,144.01,143.98,1.43344722]
[1740764906835,6.99739832,144.01,143.98,1.43344722]
[1740764907036,0.05279832,144.01,143.98,1.43344722]
[1740764907735,6.945,144.0,143.98,1.43344722]
[1740764907937,0.05279832,144.01,143.98,0.04436541]
[1740764908134,6.9454,143.99,143.98,0.04436541]
[1740764909744,0.05279832,144.01,143.98,0.04436541]
[1740764909946,6.99739832,144.01,143.98,0.04436541]
[1740764910438,0.05279832,144.01,143.98,0.04436541]
[1740764912140,0.05279832,144.01,143.98,6.99006541]
[1740764912442,0.05279832,144.01,143.98,0.04436541]
[1740764913847,6.99759832,144.01,143.98,0.04436541]
[1740764914745,0.05279832,144.01,143.98,0.04436541]
[1740764914944,6.945,144.0,143.98,0.04436541]
[1740764915248,0.05279832,144.01,143.98,0.04436541]
[1740764915443,6.99759832,144.01,143.98,0.04436541]
[1740764917046,0.05279832,144.01,143.98,0.04436541]
[1740764918348,6.9472,143.96,143.93,236.24]
[1740764918753,3.7885,144.0,143.9,1.8903]
[1740764918955,6.9483,143.94,143.89,8.8046]
[1740764919155,3.7885,144.0,143.89,8.8046]
[1740764919354,0.04552155,143.93,143.89,8.8046]
[1740764919652,3.7885,144.0,143.89,8.8046]
[1740764919852,0.05150197,143.92,143.89,1.8545]
[1740764920053,3.7885,144.0,143.9,6.9497]
[1740764920249,0.04785652,143.92,143.9,6.9497]
[1740764920450,6.9475,143.95,143.9,6.9497]
[1740764920651,0.04813208,143.92,143.88,6.9506]
[1740764920852,6.9479,143.94,143.88,6.9506]
[1740764921051,0.04629539,143.91,143.88,6.9506]
[1740764921855,6.9462,143.98,143.91,6.9493]
[1740764922047,3.6658,144.01,143.86,27.26074356]
[1740764922252,3.6658,144.01,143.87,1.27638555]
[1740764922445,6.9456,143.99,143.92,6.9485]
[1740764922654,3.6658,144.01,143.91,14.12]
[1740764923055,0.04595819,143.97,143.95,0.04569934]
[1740764932864,6.9469,143.96,143.95,0.04569934]
[1740764933766,6.9485,143.93,143.89,13.94]
[1740764934067,6.9485,143.93,143.87,6.9509]
[1740764934367,6.9485,143.93,143.87,20.8909]
[1740764934971,0.04978906,143.91,143.87,20.8909]
[1740764935364,6.9508,143.88,143.84,38.06826762]
[1740764935771,0.04613671,143.87,143.84,38.06826762]
[1740764936065,6.99743671,143.87,143.84,38.06826762]
[1740764936670,0.04613671,143.87,143.84,38.06826762]
[1740764937065,6.952,143.86,143.84,38.06826762]
[1740764937372,0.04613671,143.87,143.84,38.06826762]
[1740764937571,6.952,143.86,143.84,38.06826762]
[1740764938677,6.952,143.86,143.8,13.98]
[1740764939674,6.99753671,143.87,143.8,13.98]
[1740764939973,0.04613671,143.87,143.81,1.27708435]
[1740764940271,0.04613671,143.87,143.82,1.901]
[1740764940475,0.04613671,143.87,143.83,5.09498435]
[1740764940669,0.04613671,143.87,143.83,3.8179]
[1740764941069,0.04613671,143.87,143.84,1.27685401]
[1740764941264,0.04613671,143.87,143.85,13.94]
[1740764941674,6.9517,143.86,143.83,3.8179]
[1740764942071,0.04613671,143.87,143.83,1.8963]
[1740764942275,0.04613671,143.87,143.82,224.221]
[1740764942779,6.9525,143.85,143.82,224.221]
[1740764943072,6.9525,143.85,143.82,222.32]
[1740764943274,0.04613671,143.87,143.77,1.7863]
[1740764943473,13.9,143.9,143.77,1.7863]
[1740764943474,5.4574,143.89,143.77,1.7863]
[1740764943770,6.9541,143.82,143.77,1.7863]
[1740764944074,0.0493691,143.83,143.77,1.7863]
[1740764944377,6.9542,143.81,143.76,41.74006762]
[1740764944569,0.0493691,143.83,143.76,41.74006762]
[1740764944772,0.0506995,143.8,143.76,41.74006762]
[1740764944973,6.9542,143.81,143.76,41.74006762]
[1740764945175,0.04791753,143.79,143.76,41.74006762]
[1740764946066,0.04791753,143.79,143.76,38.06826762]
[1740764946667,6.9561,143.77,143.76,38.06826762]
[1740764946878,0.04791753,143.79,143.76,38.06826762]
[1740764947973,0.04791753,143.79,143.74,17.6257]
[1740764948377,6.9562,143.77,143.74,17.6257]
[1740764948677,0.04791753,143.79,143.74,15.8003]
[1740764948877,0.04791753,143.79,143.74,13.88]
[1740764949078,0.04791753,143.79,143.73,1.7887]
[1740764949273,6.9563,143.77,143.73,1.7887]
[1740764949473,0.04791753,143.79,143.73,1.7887]
[1740764949975,7.00331753,143.79,143.73,1.7887]
[1740764950371,0.04791753,143.79,143.73,1.7887]
[1740764951076,0.04791753,143.79,143.74,6.9572]
[1740764951276,0.04791753,143.79,143.75,13.88]
[1740764952178,7.00341753,143.79,143.75,13.88]
[1740764952379,0.04791753,143.79,143.75,13.88]
[1740764953181,0.04791753,143.79,143.75,20.8366]
[1740764953479,0.04791753,143.79,143.75,13.88]
[1740764954885,17.354,143.87,143.75,13.88]
[1740764955485,6.9549,143.8,143.75,13.88]
[1740764956190,0.04786077,143.79,143.76,0.04773667]
[1740764957294,7.00316077,143.79,143.76,0.04773667]
[1740764957492,0.04786077,143.79,143.76,0.04773667]
[1740764957986,6.9561,143.77,143.76,0.04773667]
[1740764960586,6.9561,143.77,143.67,222.38]
[1740764960587,3.48,143.77,143.6,75.47150186]
[1740764960787,3.8033,143.94,143.7,1.7844]
[1740764960994,3.8033,143.94,143.71,239.86556766]
[1740764961188,6.9546,143.81,143.73,6.958]
[1740764961384,6.9546,143.81,143.74,1.27836766]
[1740764961791,14.3,143.89,143.71,238.5872]
[1740764961989,0.05270218,143.79,143.76,0.04947076]
[1740764962184,1.8999,143.88,143.72,1.277808]
[1740764962389,0.04478407,143.79,143.76,0.04815044]
[1740764962690,1.9034,143.87,143.72,1.277808]
[1740764962885,0.0513787,143.79,143.76,0.0484001]
[1740764963090,1.9034,143.87,143.76,14.3]
[1740764963292,0.05250887,143.79,143.76,14.34998538]
[1740764963585,0.05291256,143.79,143.76,14.3]
[1740764963784,0.05291256,143.79,143.76,14.34540187]
[1740764964793,1.9034,143.87,143.76,14.34540187]
[1740764964993,1.9034,143.87,143.77,1.8438]
[1740764965495,28.01268951,143.95,143.77,1.8438]
[1740764965693,31.62898951,143.95,143.78,3.18135807]
[1740764965887,6.9479,143.94,143.84,6.9527]
[1740764966092,0.04626445,143.88,143.85,18.04037088]
[1740764966289,31.62898951,143.95,143.85,17.9931]
[1740764966491,3.704,143.99,143.86,1.39024051]
[1740764966800,3.704,143.99,143.87,1.27655918]
[1740764966993,3.704,143.99,143.86,1.39024051]
[1740764967492,0.05218343,143.94,143.91,0.04904166]
[1740764967694,7.00008343,143.94,143.91,0.04904166]
[1740764968096,0.05218343,143.94,143.91,0.04904166]
[1740764968295,6.9488,143.92,143.91,0.04904166]
[1740764968494,14.3,143.92,143.86,1.39024051]
[1740764968694,3.6473,143.91,143.74,222.44]
[1740764969197,3.6473,143.91,143.8,38.06826762]
[1740764969597,0.04691311,143.87,143.84,0.04688657]
[1740764969798,6.9519,143.86,143.84,0.04688657]
[1740764970190,0.04691311,143.87,143.84,0.04688657]
[1740764973899,1.7545,143.96,143.84,0.04688657]
[1740764974201,6.9489,143.92,143.81,14.32]
[1740764974406,6.9489,143.92,143.84,6.9527]
[1740764974704,6.9489,143.92,143.85,3.769]
[1740764975005,0.04855944,143.9,143.87,0.04815123]
[1740764975598,6.9507,143.89,143.87,0.04815123]
[1740764975807,0.04855944,143.9,143.87,0.04815123]
[1740764976292,6.9507,143.89,143.87,0.04815123]
[1740764976603,0.04855944,143.9,143.87,0.04815123]
[1740764976903,6.9507,143.88,143.87,0.04815123]
[1740764978903,0.04855944,143.9,143.79,14.2]
[1740764979100,1.745,143.89,143.79,14.2]
[1740764979305,6.9546,143.8,143.79,14.2]
[1740764979505,1.8037,143.88,143.76,1.9093]
[1740764979907,0.0477301,143.83,143.81,0.05130492]
[1740764980107,1.8037,143.88,143.81,0.05130492]
[1740764980311,6.9536,143.82,143.81,0.05130492]
[1740764981010,7.00524402,143.83,143.81,0.05130492]
[1740764981212,0.05194402,143.83,143.81,0.05130492]
[1740764982209,7.00524402,143.83,143.81,0.05130492]
[1740764983113,0.05194402,143.83,143.81,0.05130492]
[1740764983816,6.9536,143.82,143.81,0.05130492]
[1740764985514,1.745,143.89,143.81,0.05130492]
[1740764985515,1.53342389,143.95,143.81,19.02202879]
[1740764985713,1.53342389,143.95,143.82,1.9192]
[1740764986413,6.9508,143.88,143.82,1.9192]
[1740764986609,6.9508,143.88,143.87,0.04932799]
[1740764986814,5.5398,143.94,143.81,15.49072387]
[1740764986815,6.9535,143.83,143.81,15.49072387]
[1740764987013,14.26,143.91,143.81,1.43802141]
[1740764987212,0.04918837,143.83,143.81,1.39072387]
[1740764987412,14.26,143.91,143.81,1.39072387]
[1740764987614,0.04408426,143.83,143.81,1.44020425]
[1740764987815,14.26,143.91,143.81,1.39072387]
[1740764988012,6.9535,143.83,143.81,1.43564078]
[1740764988217,6.9535,143.83,143.81,1.39072387]
[1740764988422,6.9535,143.83,143.81,1.44358762]
[1740764988616,6.99793991,143.83,143.81,1.44358762]
[1740764988818,6.9536,143.82,143.81,1.44358762]
[1740764989524,0.04443991,143.83,143.82,6.9536]
[1740764990126,0.04443991,143.83,143.81,1.44358762]
[1740764990327,14.26,143.91,143.81,1.44358762]
[1740764990521,6.9511,143.88,143.81,1.39072387]
[1740764991227,6.9511,143.88,143.81,8.34442387]
[1740764991426,0.04397796,143.86,143.83,0.04632694]
[1740764993929,0.04397796,143.86,143.83,6.99942694]
[1740764994624,0.04397796,143.86,143.83,14.16632694]
[1740764995130,0.04397796,143.86,143.83,21.11952694]
[1740764997128,0.04397796,143.86,143.85,6.9522]
[1740764998725,0.04397796,143.86,143.83,14.16632694]
[1740764998923,0.04397796,143.86,143.84,6.9524]
[1740764999325,0.04397796,143.86,143.83,21.11912694]
[1740764999520,0.04397796,143.86,143.83,14.16632694]
[1740765000823,0.04397796,143.86,143.83,0.04632694]
[1740765001024,6.9527,143.84,143.83,0.04632694]
[1740765002529,6.99597796,143.86,143.83,0.04632694]
[1740765002725,0.04397796,143.86,143.83,0.04632694]
[1740765003831,0.04397796,143.86,143.83,6.99922694]
[1740765004029,0.04397796,143.86,143.83,0.04632694]
[1740765005936,5.5398,143.94,143.83,0.04632694]
[1740765006127,5.5398,143.94,143.83,2.97664873]
[1740765006334,5.5398,143.94,143.83,1.6997]
[1740765006837,6.9491,143.92,143.86,6.9514]
[1740765007035,0.05174437,143.9,143.87,14.08383185]
[1740765008432,0.05174437,143.9,143.89,6.9503]
[1740765008827,6.9466,143.97,143.9,6.9493]
[1740765009033,6.9466,143.97,143.87,14.04]
[1740765009839,0.04745784,143.93,143.91,0.05051271]
[1740765011739,5.5755,144.0,143.92,13.96]
[1740765011935,5.5755,144.0,143.92,15.7738]
[1740765012140,6.9457,143.99,143.92,15.7738]
[1740765012337,6.9457,143.99,143.92,22.7221]
[1740765012746,6.9457,143.99,143.92,15.7738]
[1740765013044,0.0468999,143.97,143.94,0.04429709]
[1740765016146,0.0468999,143.97,143.96,6.9469]
[1740765016446,28.01268951,144.07,144.02,6.9436]
[1740765016744,5.5541,144.1,144.01,13.9]
[1740765017245,5.5541,144.1,144.04,6.9429]
[1740765017641,0.05031607,144.08,144.06,0.0500879]
[1740765022641,6.9416,144.07,144.06,0.0500879]
[1740765022843,0.05031607,144.08,144.06,0.0500879]
[1740765023442,0.05031607,144.08,144.01,13.9]
[1740765023849,6.9429,144.05,144.01,13.9]
[1740765024347,6.9422,144.06,144.01,13.9]
[1740765024553,0.04934837,144.04,144.02,0.04817714]
[1740765024846,13.84,144.1,143.97,20.7862]
[1740765025046,0.04387021,144.04,144.02,0.05281093]
[1740765025247,0.04387021,144.04,143.94,13.86]
[1740765025446,13.84,144.1,143.94,13.86]
[1740765025949,6.9435,144.03,143.98,6.9456]
[1740765026445,6.9435,144.03,143.94,13.86]
[1740765026446,6.99189367,144.02,143.99,0.04939708]
[1740765026640,13.84,144.1,143.94,13.86]
[1740765026839,0.05192314,144.02,143.99,0.04799938]
[1740765027052,6.9442,144.02,143.96,6.9465]
[1740765027247,6.98912126,144.02,143.99,0.04843843]
[1740765028347,0.04492126,144.02,143.99,0.04843843]
[1740765029344,6.9445,144.01,143.99,0.04843843]
[1740765029545,0.04492126,144.02,143.99,0.04843843]
[1740765030050,6.98912126,144.02,143.99,0.04843843]
[1740765031149,0.04492126,144.02,143.99,0.04843843]
[1740765031653,0.04492126,144.02,143.99,13.88843843]
[1740765032348,0.04492126,144.02,143.92,3.7872]
[1740765032553,3.5413,144.04,143.93,236.16]
[1740765032952,3.5413,144.04,143.93,222.32]
[1740765033149,6.9467,143.97,143.93,236.16]
[1740765033354,3.5413,144.04,143.93,236.16]
[1740765033657,6.9474,143.95,143.93,222.32]
[1740765033852,0.04603783,144.0,143.97,0.04860708]
[1740765034052,0.05186294,144.0,143.97,0.04906987]
[1740765034362,0.05186294,144.0,143.93,222.32]
[1740765034554,0.05186294,144.0,143.9,13.84]
[1740765034753,6.9482,143.94,143.9,13.84]
[1740765035053,3.5413,144.04,143.9,13.84]
[1740765035454,3.5413,144.04,143.96,0.04655891]
[1740765035455,0.05035412,143.98,143.96,0.04655891]
[1740765035656,3.5413,144.04,143.9,13.84]
[1740765035851,3.5413,144.04,143.93,6.948]
[1740765036051,3.5413,144.04,143.9,13.84]
[1740765036256,3.5413,144.04,143.91,1.27623817]
[1740765036457,6.9452,144.0,143.91,1.27623817]
[1740765036860,0.04615317,143.97,143.94,0.0500428]
[1740765037760,0.04615317,143.97,143.95,13.84]
[1740765040758,0.04615317,143.97,143.95,20.7873]
[1740765043062,0.04615317,143.97,143.95,13.84]
[1740765046464,1.7771,144.03,143.95,13.84]
[1740765046764,1.7771,144.03,143.96,1.8872]
[1740765047358,1.7771,144.03,143.95,13.84]
[1740765047759,0.04464189,144.0,143.98,0.04776365]
[1740765047959,6.9456,143.99,143.98,0.04776365]
[1740765048864,0.04464189,144.0,143.98,0.04776365]
[1740765049658,0.04464189,144.0,143.92,1.8872]
[1740765049861,0.04464189,144.0,143.88,38.06826762]
[1740765050266,13.84,144.02,143.88,38.06826762]
[1740765050463,6.9497,143.91,143.88,38.06826762]
[1740765050864,7.00164875,143.91,143.88,38.11536617]
[1740765051369,0.05194875,143.91,143.88,38.11536617]
[1740765051560,80.74440154,145.99,143.89,13.84]
[1740765051561,13.84,144.02,143.89,13.84]
[1740765051870,6.9458,143.99,143.9,6.9496]
[1740765052360,6.9451,144.0,143.91,6.9492]
[1740765052763,0.04967094,143.97,143.94,0.04835815]
[1740765055359,0.04967094,143.97,143.88,13.84]
[1740765055563,0.04967094,143.97,143.86,224.0439]
[1740765055564,0.04967094,143.97,143.87,13.84]
[1740765055769,6.9486,143.93,143.87,13.84]
[1740765055966,13.84,143.97,143.87,13.84]
[1740765056165,3.6761,143.96,143.87,13.84]
[1740765056462,3.6761,143.96,143.86,262.11216762]